fUSD/lending_fUSD_20240222
["ID","MTS","AMOUNT","RATE_DAILY","PERIOD"]
[314896407,1708625488729,-926.28,0.00033287,4]
[314896408,1708625488739,-500.0,0.00033287,4]
[314896409,1708625488749,-744.11,0.00033287,4]
[314896410,1708625488759,-529.22,0.00033287,4]
[314896411,1708625488768,-500.0,0.00033287,4]
[314896412,1708625488778,-500.0,0.00033287,4]
[314896413,1708625488788,-500.0,0.00033287,4]
[314896414,1708625488797,-500.0,0.00033287,4]
[314896415,1708625488806,-1143.73,0.00033287,4]
[314896416,1708625488816,-500.0,0.00033287,4]
[314896417,1708625488825,-500.0,0.00033287,4]
[314896418,1708625488834,-500.0,0.00033287,4]
[314896419,1708625488844,-151.0,0.00033287,3]
[314896420,1708625488854,-779.36,0.00033287,4]
[314896421,1708625488865,-500.0,0.00033287,4]
[314896422,1708625488876,-500.0,0.00033287,4]
[314896423,1708625488888,-635.41,0.00033287,4]
[314896424,1708625488897,-555.19,0.00033287,4]
[314896425,1708625488908,-532.40901762,0.00033287,4]
[314896426,1708625488917,-500.0,0.00033287,4]
[314896427,1708625488929,-500.0,0.00033287,4]
[314896428,1708625488939,-500.0,0.00033287,4]
[314896429,1708625488949,-500.0,0.00033287,4]
[314896430,1708625488959,-151.0,0.00033287,7]
[314896431,1708625488968,-601.95112019,0.00033287,4]
[314896432,1708625488978,-157.228518,0.00033287,7]
[314896433,1708625488988,-822.26,0.00033287,4]
[314896434,1708625488998,-769.66,0.00033287,4]
[314896435,1708625489008,-500.0,0.00033287,4]
[314896436,1708625489018,-500.0,0.00033287,4]
[314896437,1708625489027,-500.0,0.00033287,4]
[314896438,1708625489037,-500.0,0.00033287,4]
[314896439,1708625489046,-500.0,0.00033287,4]
[314896440,1708625489055,-500.0,0.00033287,4]
[314896441,1708625489065,-889.62,0.00033287,4]
[314896442,1708625489075,-634.08,0.00033287,4]
[314896443,1708625489085,-500.0,0.00033287,4]
[314896444,1708625489094,-500.0,0.00033287,4]
[314896445,1708625489103,-567.01,0.00033287,4]
[314896446,1708625489112,-721.11,0.00033287,4]
[314896447,1708625489121,-653.98,0.00033287,4]
[314896448,1708625489130,-659.59,0.00033287,4]
[314896449,1708625489139,-482.72249537,0.00033287,4]
[314896450,1708625489149,-500.0,0.00033287,4]
[314896451,1708625489159,-500.0,0.00033287,4]
[314896452,1708625489168,-500.0,0.00033287,4]
[314896453,1708625489178,-500.0,0.00033287,4]
[314896454,1708625489305,-951.61,0.00033287,4]
[314896455,1708625489316,-627.93,0.00033287,4]
[314896456,1708625489325,-500.0,0.00033287,4]
[314896457,1708625489335,-559.09097252,0.00033287,4]
[314896458,1708625489344,-1016.3,0.00033287,4]
[314896459,1708625489353,-481.651988,0.00033287,7]
[314896460,1708625489362,-500.0,0.00033287,4]
[314896461,1708625489371,-677.11,0.00033287,4]
[314896462,1708625489380,-500.0,0.00033287,4]
[314896463,1708625489389,-500.0,0.00033287,4]
[314896464,1708625489402,-668.92,0.00033287,4]
[314896465,1708625489412,-746.18,0.00033287,4]
[314896466,1708625489421,-500.0,0.00033287,4]
[314896467,1708625489430,-481.651988,0.00033287,7]
[314896468,1708625489439,-655.97,0.00033287,4]
[314896469,1708625489448,-500.0,0.00033287,4]
[314896470,1708625489457,-500.0,0.00033287,4]
[314896471,1708625489467,-944.62,0.00033287,4]
[314896472,1708625489476,-500.0,0.00033287,4]
[314896473,1708625489485,-500.0,0.00033287,4]
[314896474,1708625489494,-500.0,0.00033287,4]
[314896475,1708625489504,-151.0,0.00033287,7]
[314896476,1708625489513,-500.0,0.00033287,4]
[314896477,1708625489523,-804.18,0.00033287,4]
[314896478,1708625489532,-507.61264653,0.00033287,4]
[314896479,1708625489542,-535.66,0.00033287,4]
[314896480,1708625489550,-500.0,0.00033287,4]
[314896481,1708625489560,-500.0,0.00033287,4]
[314896482,1708625489571,-936.27,0.00033287,4]
[314896483,1708625489580,-500.0,0.00033287,4]
[314896484,1708625489590,-500.0,0.00033287,4]
[314896485,1708625489598,-500.0,0.00033287,4]
[314896486,1708625489607,-573.6,0.00033287,4]
[314896487,1708625489616,-582.22084202,0.00033287,4]
[314896488,1708625489625,-486.59629506,0.00033287,4]
[314896489,1708625489634,-156.950667,0.00033287,7]
[314896490,1708625489643,-500.0,0.00033287,4]
[314896491,1708625489652,-573.73,0.00033287,4]
[314896492,1708625489661,-156.950667,0.00033287,7]
[314896493,1708625489670,-906.98,0.00033287,4]
[314896494,1708625489681,-625.48,0.00033287,4]
[314896495,1708625489690,-619.25,0.00033287,4]
[314896496,1708625489699,-500.0,0.00033287,4]
[314896497,1708625489709,-802.24,0.00033287,4]
[314896498,1708625489718,-500.0,0.00033287,4]
[314896499,1708625489727,-500.0,0.00033287,4]
[314896500,1708625489736,-500.0,0.00033287,4]
[314896501,1708625489745,-553.85,0.00033287,4]
[314896502,1708625489755,-951.64,0.00033287,4]
[314896503,1708625489765,-500.0,0.00033287,4]
[314896504,1708625489775,-500.0,0.00033287,4]
[314896505,1708625489785,-500.0,0.00033287,4]
[314896506,1708625489794,-500.0,0.00033287,4]
[314896507,1708625489804,-694.67,0.00033287,4]
[314896508,1708625489814,-500.0,0.00033287,4]
[314896509,1708625489823,-500.0,0.00033287,4]
[314896510,1708625489832,-991.06,0.00033287,4]
[314896511,1708625489841,-500.0,0.00033287,4]
[314896512,1708625489851,-676.95,0.00033287,4]
[314896513,1708625489861,-764.63,0.00033287,4]
[314896514,1708625489873,-500.0,0.00033287,4]
[314896515,1708625489883,-500.0,0.00033287,4]
[314896516,1708625489892,-508.78,0.00033287,4]
[314896517,1708625489901,-500.0,0.00033287,4]
[314896518,1708625489911,-500.0,0.00033287,2]
[314896519,1708625489922,-802.5,0.00033287,4]
[314896520,1708625489931,-664.95,0.00033287,4]
[314896521,1708625489941,-500.0,0.00033287,4]
[314896522,1708625489950,-500.0,0.00033287,4]
[314896523,1708625489959,-500.0,0.00033287,4]
[314896524,1708625489969,-500.0,0.00033287,4]
[314896525,1708625489978,-500.0,0.00033287,4]
[314896526,1708625489987,-692.13,0.00033287,4]
[314896527,1708625489996,-632.57,0.00033287,4]
[314896528,1708625490006,-509.92,0.00033287,4]
[314896529,1708625490015,-500.0,0.00033287,4]
[314896530,1708625490024,-500.0,0.00033287,4]
[314896531,1708625490033,-500.0,0.00033287,4]
[314896532,1708625490042,-500.0,0.00033287,4]
[314896533,1708625490051,-607.02,0.00033287,4]
[314896534,1708625490060,-792.22,0.00033287,4]
[314896535,1708625490071,-500.0,0.00033287,4]
[314896536,1708625490080,-500.0,0.00033287,4]
[314896537,1708625490091,-1057.84,0.00033287,4]
[314896538,1708625490100,-500.0,0.00033287,4]
[314896539,1708625490109,-967.9,0.00033287,4]
[314896540,1708625490119,-1015.71,0.00033287,4]
[314896541,1708625490129,-500.0,0.00033287,4]
[314896542,1708625490138,-1057.91,0.00033287,4]
[314896543,1708625490147,-500.0,0.00033287,4]
[314896544,1708625490158,-500.0,0.00033287,4]
[314896545,1708625490167,-1562.84,0.00033287,4]
[314896546,1708625490178,-500.0,0.00033287,2]
[314896547,1708625490187,-908.7,0.00033287,4]
[314896548,1708625490196,-574.22,0.00033287,4]
[314896549,1708625490205,-500.0,0.00033287,4]
[314896550,1708625490215,-1195.95,0.00033287,4]
[314896551,1708625490229,-500.0,0.00033287,4]
[314896552,1708625490239,-500.0,0.00033287,4]
[314896553,1708625490249,-500.0,0.00033287,4]
[314896554,1708625490258,-151.0,0.00033287,7]
[314896555,1708625490268,-500.0,0.00033287,4]
[314896556,1708625490278,-711.8,0.00033287,4]
[314896557,1708625490288,-643.93,0.00033287,4]
[314896558,1708625490298,-500.0,0.00033287,4]
[314896559,1708625490308,-151.0,0.00033287,7]
[314896560,1708625490317,-500.0,0.00033287,4]
[314896561,1708625490327,-690.36,0.00033287,4]
[314896562,1708625490337,-500.0,0.00033287,4]
[314896563,1708625490346,-582.2,0.00033287,4]
[314896564,1708625490356,-808.11,0.00033287,4]
[314896565,1708625490366,-623.27,0.00033287,4]
[314896566,1708625490375,-500.0,0.00033287,4]
[314896567,1708625490384,-955.15,0.00033287,4]
[314896568,1708625490393,-500.0,0.00033287,4]
[314896569,1708625490403,-500.0,0.00033287,4]
[314896570,1708625490412,-151.0,0.00033287,7]
[314896571,1708625490422,-500.0,0.00033287,4]
[314896572,1708625490432,-500.0,0.00033287,2]
[314896573,1708625490441,-520.41,0.00033287,4]
[314896574,1708625490451,-500.0,0.00033287,4]
[314896575,1708625490461,-642.76,0.00033287,4]
[314896576,1708625490470,-500.0,0.00033287,4]
[314896577,1708625490480,-500.0,0.00033287,4]
[314896578,1708625490489,-500.0,0.00033287,4]
[314896579,1708625490499,-500.0,0.00033287,4]
[314896580,1708625490508,-500.0,0.00033287,4]
[314896581,1708625490518,-814.72,0.00033287,4]
[314896582,1708625490527,-763.81,0.00033287,4]
[314896583,1708625490538,-500.0,0.00033287,4]
[314896584,1708625490547,-500.0,0.00033287,4]
[314896585,1708625490559,-920.28,0.00033287,4]
[314896586,1708625490569,-595.79,0.00033287,4]
[314896587,1708625490580,-500.0,0.00033287,4]
[314896588,1708625490590,-595.41085163,0.00033287,4]
[314896589,1708625490599,-151.0,0.00033287,7]
[314896590,1708625490608,-616.74,0.00033287,4]
[314896591,1708625490618,-693.29,0.00033287,4]
[314896592,1708625490627,-704.13,0.00033287,4]
[314896593,1708625490637,-970.8,0.00033287,4]
[314896594,1708625490646,-523.23,0.00033287,4]
[314896595,1708625490655,-500.0,0.00033287,4]
[314896596,1708625490665,-631.14353124,0.00033287,4]
[314896597,1708625490674,-552.1,0.00033287,4]
[314896598,1708625490683,-569.97,0.00033287,4]
[314896599,1708625490692,-500.0,0.00033287,4]
[314896600,1708625490702,-500.0,0.00033287,4]
[314896601,1708625490711,-546.34,0.00033287,4]
[314896602,1708625490720,-527.94266199,0.00033287,4]
[314896603,1708625490729,-500.0,0.00033287,4]
[314896604,1708625490739,-272.392206,0.00033287,7]
[314896605,1708625490748,-597.14,0.00033287,4]
[314896606,1708625490757,-150.14838842,0.00033287,14]
[314896607,1708625490766,-272.392206,0.00033287,7]
[314896608,1708625490776,-936.39,0.00033287,4]
[314896609,1708625490785,-500.0,0.00033287,4]
[314896610,1708625490794,-500.0,0.00033287,4]
[314896611,1708625490804,-500.0,0.00033287,4]
[314896612,1708625490813,-1000.0,0.00033287,7]
[314896613,1708625490822,-1322.67,0.00033287,4]
[314896614,1708625490831,-500.0,0.00033287,4]
[314896615,1708625490841,-513.58,0.00033287,4]
[314896616,1708625490851,-500.0,0.00033287,4]
[314896617,1708625490861,-500.0,0.00033287,4]
[314896618,1708625490872,-1000.0,0.00033287,7]
[314896619,1708625490882,-500.0,0.00033287,4]
[314896620,1708625490891,-652.66,0.00033287,4]
[314896621,1708625490901,-275.82992844,0.00033287,4]
[314896622,1708625490911,-500.0,0.00033287,4]
[314896623,1708625490923,-500.0,0.00033287,4]
[314896624,1708625490932,-905.48,0.00033287,4]
[314896625,1708625490941,-500.0,0.00033287,4]
[314896626,1708625490955,-500.0,0.00033287,4]
[314896627,1708625490965,-902.91,0.00033287,4]
[314896628,1708625490974,-500.0,0.00033287,4]
[314896629,1708625490984,-500.0,0.00033287,4]
[314896630,1708625490993,-500.0,0.00033287,4]
[314896631,1708625491002,-500.0,0.00033287,4]
[314896632,1708625491011,-185.73938428,0.00033287,4]
[314896633,1708625491020,-577.69,0.00033287,4]
[314896634,1708625491030,-500.0,0.00033287,4]
[314896635,1708625491040,-1566.96,0.00033287,4]
[314896636,1708625491049,-208.542763,0.00033287,7]
[314896637,1708625491058,-500.0,0.00033287,4]
[314896638,1708625491068,-500.0,0.00033287,4]
[314896639,1708625491077,-885.89,0.00033287,4]
[314896640,1708625491087,-567.92,0.00033287,4]
[314896641,1708625491096,-642.58,0.00033287,4]
[314896642,1708625491106,-851.67,0.00033287,4]
[314896643,1708625491116,-500.0,0.00033287,2]
[314896644,1708625491125,-500.0,0.00033287,4]
[314896645,1708625491135,-583.46,0.00033287,4]
[314896646,1708625491145,-572.75,0.00033287,4]
[314896647,1708625491154,-1131.89,0.00033287,4]
[314896648,1708625491163,-500.0,0.00033287,4]
[314896649,1708625491174,-500.0,0.00033287,4]
[314896650,1708625491183,-500.0,0.00033287,4]
[314896651,1708625491193,-500.0,0.00033287,4]
[314896652,1708625491202,-500.0,0.00033287,4]
[314896653,1708625491211,-500.0,0.00033287,4]
[314896654,1708625491221,-568.65,0.00033287,4]
[314896655,1708625491230,-331.38575773,0.00033287,4]
[314896656,1708625491241,-500.0,0.00033287,4]
[314896657,1708625491250,-500.0,0.00033287,4]
[314896658,1708625491259,-500.0,0.00033287,4]
[314896659,1708625491269,-1313.43,0.00033287,4]
[314896660,1708625491278,-3828.9,0.00033287,4]
[314896661,1708625491287,-500.0,0.00033287,4]
[314896662,1708625491297,-500.0,0.00033287,4]
[314896663,1708625491307,-1312.47,0.00033287,4]
[314896664,1708625491316,-500.0,0.00033287,4]
[314896665,1708625491325,-510.63133199,0.00033287,4]
[314896666,1708625491334,-500.0,0.00033287,4]
[314896667,1708625491344,-263.64528994,0.00033287,4]
[314896668,1708625491354,-637.56,0.00033287,4]
[314896669,1708625491363,-500.0,0.00033287,4]
[314896670,1708625491373,-500.0,0.00033287,4]
[314896671,1708625491382,-500.0,0.00033287,4]
[314896672,1708625491392,-500.0,0.00033287,4]
[314896673,1708625491404,-500.0,0.00033287,4]
[314896674,1708625491413,-500.0,0.00033287,4]
[314896675,1708625491423,-771.01,0.00033287,4]
[314896676,1708625491433,-500.0,0.00033287,4]
[314896677,1708625491442,-500.0,0.00033287,4]
[314896678,1708625491452,-670.32,0.00033287,4]
[314896679,1708625491462,-905.48,0.00033287,4]
[314896680,1708625491473,-500.0,0.00033287,4]
[314896681,1708625491482,-587.38,0.00033287,4]
[314896682,1708625491492,-500.0,0.00033287,4]
[314896683,1708625491502,-500.0,0.00033287,4]
[314896684,1708625491511,-523.68625987,0.00033287,4]
[314896685,1708625491521,-500.0,0.00033287,4]
[314896686,1708625491530,-500.0,0.00033287,4]
[314896687,1708625491540,-500.0,0.00033287,4]
[314896688,1708625491550,-500.0,0.00033287,4]
[314896689,1708625491560,-500.0,0.00033287,4]
[314896690,1708625491570,-500.0,0.00033287,4]
[314896691,1708625491579,-500.0,0.00033287,4]
[314896692,1708625491589,-628.49932753,0.00033287,4]
[314896693,1708625491599,-159.745135,0.00033287,7]
[314896694,1708625491608,-500.0,0.00033287,4]
[314896695,1708625491618,-500.0,0.00033287,4]
[314896696,1708625491627,-1115.25,0.00033287,4]
[314896697,1708625491637,-159.745135,0.00033287,7]
[314896698,1708625491646,-617.27,0.00033287,4]
[314896699,1708625491656,-1239.94,0.00033287,4]
[314896700,1708625491665,-500.0,0.00033287,4]
[314896701,1708625491678,-920.63,0.00033287,4]
[314896702,1708625491688,-799.98,0.00033287,4]
[314896703,1708625491697,-1030.29,0.00033287,4]
[314896704,1708625491706,-500.0,0.00033287,4]
[314896705,1708625491716,-500.0,0.00033287,4]
[314896706,1708625491725,-500.0,0.00033287,4]
[314896707,1708625491735,-500.0,0.00033287,4]
[314896708,1708625491745,-638.44757775,0.00033287,4]
[314896709,1708625491755,-209.966881,0.00033287,7]
[314896710,1708625491764,-500.0,0.00033287,4]
[314896711,1708625491773,-500.0,0.00033287,4]
[314896712,1708625491783,-209.966881,0.00033287,7]
[314896713,1708625491793,-728.76,0.00033287,4]
[314896714,1708625491803,-741.55,0.00033287,4]
[314896715,1708625491812,-617.56,0.00033287,4]
[314896716,1708625491822,-500.0,0.00033287,4]
[314896717,1708625491832,-664.22,0.00033287,4]
[314896718,1708625491842,-500.0,0.00033287,4]
[314896719,1708625491852,-582.0,0.00033287,4]
[314896720,1708625491861,-500.0,0.00033287,4]
[314896721,1708625491875,-541.78,0.00033287,4]
[314896722,1708625491884,-764.35,0.00033287,4]
[314896723,1708625491894,-500.0,0.00033287,4]
[314896724,1708625491904,-500.0,0.00033287,4]
[314896725,1708625491915,-1242.24,0.00033287,4]
[314896726,1708625491926,-872.206723,0.00033287,7]
[314896727,1708625491935,-1041.1,0.00033287,4]
[314896728,1708625491945,-500.0,0.00033287,4]
[314896729,1708625491958,-1494.6,0.00033287,4]
[314896730,1708625491968,-500.0,0.00033287,4]
[314896731,1708625491978,-872.206723,0.00033287,7]
[314896732,1708625491988,-500.0,0.00033287,4]
[314896733,1708625491998,-500.0,0.00033287,4]
[314896734,1708625492007,-983.44,0.00033287,4]
[314896735,1708625492017,-273.001206,0.00033287,7]
[314896736,1708625492028,-500.0,0.00033287,4]
[314896737,1708625492038,-871.52,0.00033287,4]
[314896738,1708625492049,-500.0,0.00033287,4]
[314896739,1708625492059,-273.001206,0.00033287,7]
[314896740,1708625492069,-937.84,0.00033287,4]
[314896741,1708625492080,-500.0,0.00033287,4]
[314896742,1708625492090,-500.0,0.00033287,4]
[314896743,1708625492100,-500.0,0.00033287,4]
[314896744,1708625492109,-940.94,0.00033287,4]
[314896745,1708625492120,-623.65705456,0.00033287,4]
[314896746,1708625492130,-500.0,0.00033287,4]
[314896747,1708625492140,-1267.73,0.00033287,4]
[314896748,1708625492150,-900.68,0.00033287,4]
[314896749,1708625492160,-988.42,0.00033287,4]
[314896750,1708625492170,-535.3391859,0.00033287,4]
[314896751,1708625492182,-598.66,0.00033287,4]
[314896752,1708625492193,-1407.88,0.00033287,4]
[314896753,1708625492203,-500.0,0.00033287,4]
[314896754,1708625492212,-500.0,0.00033287,4]
[314896755,1708625492222,-1015.51,0.00033287,4]
[314896756,1708625492232,-500.0,0.00033287,4]
[314896757,1708625492242,-500.0,0.00033287,4]
[314896758,1708625492252,-500.0,0.00033287,4]
[314896759,1708625492262,-500.0,0.00033287,4]
[314896760,1708625492271,-500.0,0.00033287,4]
[314896761,1708625492281,-625.15,0.00033287,4]
[314896762,1708625492291,-1044.83,0.00033287,4]
[314896763,1708625492301,-824.67,0.00033287,4]
[314896764,1708625492311,-848.25,0.00033287,4]
[314896765,1708625492321,-715.27,0.00033287,4]
[314896766,1708625492330,-500.0,0.00033287,4]
[314896767,1708625492340,-604.00252692,0.00033287,4]
[314896768,1708625492350,-500.0,0.00033287,4]
[314896769,1708625492360,-500.0,0.00033287,4]
[314896770,1708625492373,-500.0,0.00033287,4]
[314896771,1708625492383,-1782.080711,0.00033287,7]
[314896772,1708625492393,-500.0,0.00033287,4]
[314896773,1708625492404,-151.0,0.00033287,7]
[314896774,1708625492414,-979.83,0.00033287,4]
[314896775,1708625492425,-240.853509,0.00033287,7]
[314896776,1708625492436,-1292.8,0.00033287,4]
[314896777,1708625492446,-500.0,0.00033287,4]
[314896778,1708625492456,-500.0,0.00033287,4]
[314896779,1708625492466,-240.853509,0.00033287,7]
[314896780,1708625492477,-579.59,0.00033287,4]
[314896781,1708625492487,-651.21,0.00033287,4]
[314896782,1708625492498,-1259.45,0.00033287,4]
[314896783,1708625492508,-709.91,0.00033287,4]
[314896784,1708625492517,-150.0,0.00033287,4]
[314896785,1708625492527,-151.0,0.00033287,7]
[314896786,1708625492537,-540.34199626,0.00033287,4]
[314896787,1708625492548,-500.0,0.00033287,4]
[314896788,1708625492557,-695.7,0.00033287,4]
[314896789,1708625492567,-500.0,0.00033287,4]
[314896790,1708625492577,-972.69,0.00033287,4]
[314896791,1708625492587,-500.0,0.00033287,4]
[314896792,1708625492597,-521.447789,0.00033287,7]
[314896793,1708625492607,-225.557429,0.00033287,7]
[314896794,1708625492617,-500.0,0.00033287,4]
[314896795,1708625492627,-1106.66,0.00033287,4]
[314896796,1708625492638,-500.0,0.00033287,4]
[314896797,1708625492649,-1263.76,0.00033287,4]
[314896798,1708625492659,-521.447789,0.00033287,7]
[314896799,1708625492669,-500.0,0.00033287,4]
[314896800,1708625492679,-500.0,0.00033287,4]
[314896801,1708625492689,-1595.37,0.00033287,4]
[314896802,1708625492698,-535.25,0.00033287,4]
[314896803,1708625492709,-500.0,0.00033287,4]
[314896804,1708625492718,-642.80876927,0.00033287,4]
[314896805,1708625492728,-1321.09,0.00033287,4]
[314896806,1708625492738,-500.0,0.00033287,4]
[314896807,1708625492748,-841.52,0.00033287,4]
[314896808,1708625492758,-162.346877,0.00033287,2]
[314896809,1708625492768,-931.24,0.00033287,4]
[314896810,1708625492778,-593.4,0.00033287,4]
[314896811,1708625492788,-505.68,0.00033287,4]
[314896812,1708625492798,-500.0,0.00033287,4]
[314896813,1708625492808,-162.346877,0.00033287,2]
[314896814,1708625492817,-500.0,0.00033287,4]
[314896815,1708625492827,-1083.33,0.00033287,4]
[314896816,1708625492837,-500.0,0.00033287,4]
[314896817,1708625492847,-1312.31,0.00033287,4]
[314896818,1708625492857,-1322.97,0.00033287,4]
[314896819,1708625492868,-500.0,0.00033287,4]
[314896820,1708625492880,-6861.46,0.00033287,4]
[314896821,1708625492890,-500.0,0.00033287,4]
[314896822,1708625492901,-500.0,0.00033287,4]
[314896823,1708625492911,-7508.74,0.00033287,4]
[314896824,1708625492923,-500.0,0.00033287,4]
[314896825,1708625492933,-500.0,0.00033287,4]
[314896826,1708625492942,-500.0,0.00033287,4]
[314896827,1708625492953,-308.051986,0.00033287,7]
[314896828,1708625492964,-2188.57,0.00033287,4]
[314896829,1708625492975,-640.5,0.00033287,4]
[314896830,1708625492985,-1521.19,0.00033287,4]
[314896831,1708625492994,-1556.17,0.00033287,2]
[314896832,1708625493004,-1367.32,0.00033287,4]
[314896833,1708625493014,-579.67,0.00033287,4]
[314896834,1708625493023,-500.0,0.00033287,4]
[314896835,1708625493034,-500.0,0.00033287,4]
[314896836,1708625493045,-151.0,0.00033287,7]
[314896837,1708625493054,-500.0,0.00033287,4]
[314896838,1708625493064,-308.051986,0.00033287,7]
[314896839,1708625493074,-500.0,0.00033287,4]
[314896840,1708625493084,-3289.02,0.00033287,4]
[314896841,1708625493094,-1435.75,0.00033287,4]
[314896842,1708625493104,-7764.94,0.00033287,4]
[314896843,1708625493114,-670.88,0.00033287,4]
[314896844,1708625493124,-1463.74,0.00033287,4]
[314896845,1708625493134,-905.05,0.00033287,4]
[314896846,1708625493144,-500.0,0.00033287,4]
[314896847,1708625493154,-500.0,0.00033287,4]
[314896848,1708625493163,-500.0,0.00033287,4]
[314896849,1708625493175,-500.0,0.00033287,4]
[314896850,1708625493185,-2618.09,0.00033287,4]
[314896851,1708625493195,-151.0,0.00033287,7]
[314896852,1708625493205,-1754.26,0.00033287,4]
[314896853,1708625493215,-571.38,0.00033287,4]
[314896854,1708625493225,-230.005431,0.00033287,7]
[314896855,1708625493235,-500.0,0.00033287,4]
[314896856,1708625493245,-230.005431,0.00033287,7]
[314896857,1708625493255,-1224.57,0.00033287,4]
[314896858,1708625493265,-1412.23,0.00033287,4]
[314896859,1708625493275,-1295.05,0.00033287,4]
[314896860,1708625493285,-2025.9,0.00033287,4]
[314896861,1708625493296,-500.0,0.00033287,4]
[314896862,1708625493306,-151.0,0.00033287,7]
[314896863,1708625493315,-734.04,0.00033287,4]
[314896864,1708625493325,-16810.08,0.00033287,4]
[314896865,1708625493335,-500.0,0.00033287,4]
[314896866,1708625493345,-3953.01,0.00033287,4]
[314896867,1708625493355,-1357.88,0.00033287,4]
[314896868,1708625493365,-500.0,0.00033287,4]
[314896869,1708625493375,-500.0,0.00033287,4]
[314896870,1708625493385,-523.91,0.00033287,4]
[314896871,1708625493396,-500.0,0.00033287,4]
[314896872,1708625493406,-500.0,0.00033287,4]
[314896873,1708625493417,-156.888403,0.00033287,7]
[314896874,1708625493427,-1319.7,0.00033287,4]
[314896875,1708625493437,-500.0,0.00033287,4]
[314896876,1708625493447,-1306.91,0.00033287,4]
[314896877,1708625493458,-2921.05,0.00033287,4]
[314896878,1708625493468,-4012.02,0.00033287,4]
[314896879,1708625493478,-3520.12,0.00033287,4]
[314896880,1708625493488,-156.888403,0.00033287,7]
[314896881,1708625493498,-1203.69,0.00033287,4]
[314896882,1708625493508,-7422.46,0.00033287,4]
[314896883,1708625493519,-500.0,0.00033287,4]
[314896884,1708625493530,-2325.63,0.00033287,4]
[314896885,1708625493539,-595.22,0.00033287,4]
[314896886,1708625493549,-500.0,0.00033287,4]
[314896887,1708625493559,-500.0,0.00033287,4]
[314896888,1708625493569,-500.0,0.00033287,4]
[314896889,1708625493579,-578.71,0.00033287,4]
[314896890,1708625493589,-500.0,0.00033287,4]
[314896891,1708625493600,-896.84,0.00033287,4]
[314896892,1708625493610,-500.0,0.00033287,4]
[314896893,1708625493620,-802.17,0.00033287,4]
[314896894,1708625493630,-500.0,0.00033287,4]
[314896895,1708625493640,-579.72,0.00033287,4]
[314896896,1708625493649,-2641.23,0.00033287,4]
[314896897,1708625493659,-999.86,0.00033287,4]
[314896898,1708625493670,-3363.68,0.00033287,4]
[314896899,1708625493680,-2799.21,0.00033287,4]
[314896900,1708625493689,-500.0,0.00033287,4]
[314896901,1708625493699,-500.0,0.00033287,4]
[314896902,1708625493709,-500.0,0.00033287,4]
[314896903,1708625493720,-522.87,0.00033287,4]
[314896904,1708625493730,-879.41,0.00033287,4]
[314896905,1708625493741,-922.6,0.00033287,4]
[314896906,1708625493751,-2871.255775,0.00033287,7]